bitfinex/quotes_SOLUSD_20240615
["timestamp","ask_amount","ask_price","bid_price","bid_amount"]
[1718446509097,1e-08,143.34,143.33,51.33571586]
[1718446509798,1e-08,143.34,143.33,67.01047573]
[1718446510010,1e-08,143.34,143.33,75.27826777]
[1718446510191,1e-08,143.34,143.33,80.86976326]
[1718446524841,1e-08,143.34,143.33,74.43976326]
[1718446525046,1e-08,143.34,143.33,80.18976326]
[1718446526131,1e-08,143.34,143.33,80.86976326]
[1718446532429,1e-08,143.34,143.33,89.24284064]
[1718446547449,20.9183,143.43,143.39,100.0]
[1718446547753,15.1683,143.43,143.4,20.51]
[1718446547939,20.9183,143.43,143.4,20.51]
[1718446548371,15.1683,143.43,143.4,20.51]
[1718446548544,16.2974,143.46,143.42,0.17]
[1718446548878,22.0474,143.46,143.42,20.34]
[1718446549158,22.0474,143.46,143.42,20.51]
[1718446549555,22.0474,143.46,143.43,0.17]
[1718446549738,22.0474,143.46,143.43,0.34]
[1718446552467,16.2974,143.46,143.44,0.34]
[1718446552765,0.859391,143.47,143.46,0.17]
[1718446552935,0.859391,143.47,143.46,21.73364157]
[1718446553136,0.859391,143.47,143.46,21.90364157]
[1718446553343,0.859391,143.47,143.46,22.07364157]
[1718446553978,0.859391,143.47,143.46,27.82364157]
[1718446554136,0.20633864,143.47,143.46,27.82364157]
[1718446555161,0.20633864,143.47,143.46,48.79364157]
[1718446559038,0.20633864,143.47,143.46,20.68]
[1718446560462,0.20633864,143.47,143.46,20.0]
[1718446560778,5.95633864,143.47,143.46,20.0]
[1718446560951,5.95633864,143.47,143.43,20.0]
[1718446561773,0.20633864,143.47,143.43,20.0]
[1718446561978,0.20633864,143.47,143.43,29.92475987]
[1718446562155,0.20633864,143.47,143.44,100.0]
[1718446562354,0.20633864,143.47,143.45,20.0]
[1718446562571,0.20633864,143.47,143.46,0.34]
[1718446563752,0.20633864,143.47,143.45,0.51]
[1718446564073,15.6416,143.51,143.47,0.17]
[1718446564290,15.6416,143.51,143.49,0.17]
[1718446564455,15.6416,143.51,143.49,20.68]
[1718446566262,15.6416,143.51,143.49,0.68]
[1718446566474,15.6416,143.51,143.49,20.68]
[1718446567580,16.4931,143.56,143.52,0.17]
[1718446567792,22.2431,143.56,143.52,20.51]
[1718446568460,5.75,143.55,143.52,20.51]
[1718446568659,5.75,143.54,143.52,20.51]
[1718446568877,5.75,143.54,143.52,0.51]
[1718446569175,5.75,143.53,143.5,20.0]
[1718446569378,16.4931,143.56,143.5,100.0]
[1718446569564,5.75,143.55,143.51,20.0]
[1718446570570,5.75,143.54,143.52,0.68]
[1718446575972,16.4931,143.56,143.52,0.68]
[1718446576288,5.75,143.54,143.52,0.68]
[1718446576974,5.75,143.54,143.52,0.51]
[1718446580005,16.4931,143.56,143.52,0.51]
[1718446580201,5.75,143.54,143.52,0.51]
[1718446582968,16.4931,143.56,143.51,20.0]
[1718446583184,16.4931,143.56,143.48,100.0]
[1718446583185,5.75,143.53,143.5,0.51]
[1718446583369,5.75,143.53,143.51,0.17]
[1718446583894,5.75,143.53,143.5,0.51]
[1718446584080,5.75,143.52,143.5,0.51]
[1718446587600,16.4931,143.56,143.5,0.51]
[1718446587781,5.75,143.52,143.5,0.51]
[1718446592601,5.75,143.51,143.5,0.51]
[1718446593221,5.75,143.51,143.5,0.34]
[1718446593581,5.75,143.51,143.5,0.17]
[1718446594204,5.75,143.51,143.5,0.34]
[1718446594403,5.75,143.51,143.5,0.51]
[1718446594591,5.75,143.52,143.5,0.51]
[1718446595404,15.3925,143.6,143.52,0.17]
[1718446595614,5.75,143.55,143.52,20.51]
[1718446598596,5.75,143.55,143.53,0.17]
[1718446598791,5.75,143.55,143.54,0.17]
[1718446599007,5.75,143.55,143.54,0.51]
[1718446604204,5.75,143.55,143.52,20.0]
[1718446604407,5.75,143.53,143.5,20.0]
[1718446605011,5.75,143.53,143.51,100.0]
[1718446605210,5.75,143.54,143.52,20.0]
[1718446605391,5.75,143.55,143.52,20.0]
[1718446605593,5.75,143.55,143.53,0.51]
[1718446608295,5.75,143.54,143.52,20.0]
[1718446608621,5.75,143.54,143.49,100.0]
[1718446608622,5.75,143.53,143.51,0.34]
[1718446612128,5.75,143.57,143.51,0.34]
[1718446612297,5.75,143.54,143.51,0.34]
[1718446613599,5.75,143.54,143.52,0.17]
[1718446613791,5.75,143.54,143.52,0.34]
[1718446613998,5.75,143.54,143.53,0.17]
[1718446614197,5.75,143.55,143.54,0.17]
[1718446616828,15.3925,143.6,143.54,0.17]
[1718446617027,5.75,143.55,143.54,0.17]
[1718446619719,5.75,143.55,143.54,0.34]
[1718446620128,5.75,143.55,143.54,0.68]
[1718446625036,15.3925,143.6,143.54,0.68]
[1718446625241,15.3925,143.6,143.55,0.34]
[1718446625444,5.75,143.56,143.55,0.34]
[1718446626745,5.75,143.56,143.53,20.0]
[1718446627151,5.75,143.55,143.51,20.0]
[1718446627448,23.1223,143.6,143.51,20.0]
[1718446627651,5.75,143.55,143.51,20.0]
[1718446628346,5.75,143.55,143.52,0.17]
[1718446628551,5.75,143.55,143.52,0.68]
[1718446629949,5.75,143.54,143.52,0.34]
[1718446630240,5.75,143.53,143.51,20.0]
[1718446630420,5.75,143.53,143.49,20.0]
[1718446631335,5.75,143.51,143.46,142.65381889]
[1718446631538,5.75,143.51,143.47,8.36605546]
[1718446632449,5.75,143.51,143.48,0.34]
[1718446632626,5.75,143.51,143.5,0.17]
[1718446632826,5.75,143.51,143.5,0.34]
[1718446633130,5.75,143.51,143.5,0.68]
[1718446634655,5.75,143.51,143.46,9.92475987]
[1718446634869,5.75,143.47,143.42,106.6146]
[1718446635159,5.75,143.46,143.43,8.36786847]
[1718446635351,5.75,143.46,143.42,8.36786847]
[1718446635555,5.75,143.46,143.41,16.1704]
[1718446635556,5.75,143.5,143.41,16.1704]
[1718446635856,5.75,143.45,143.42,8.3684816]
[1718446636027,5.75,143.45,143.42,108.3684816]
[1718446636231,5.75,143.45,143.41,16.1704]
[1718446636532,5.75,143.45,143.42,20.0]
[1718446638282,5.75,143.45,143.41,20.0]
[1718446638561,5.75,143.45,143.42,0.68]
[1718446640142,5.75,143.44,143.42,0.68]
[1718446640865,5.75,143.45,143.42,0.68]
[1718446643279,30.11897191,143.51,143.46,0.17]
[1718446643440,5.75,143.49,143.46,20.68]
[1718446643875,16.4337,143.51,143.46,20.68]
[1718446644165,5.75,143.51,143.48,0.17]
[1718446644335,5.75,143.52,143.48,20.68]
[1718446645263,21.8213,143.55,143.48,20.68]
[1718446645470,5.75,143.52,143.48,20.68]
[1718446648560,5.75,143.51,143.48,20.68]
[1718446649869,5.75,143.5,143.48,20.0]
[1718446650173,5.75,143.49,143.44,20.91]
[1718446650572,5.75,143.48,143.45,100.0]
[1718446650745,5.75,143.49,143.45,120.91]
[1718446650942,5.75,143.51,143.45,126.66]
[1718446651262,5.75,143.51,143.46,0.17]
[1718446651457,5.75,143.51,143.46,20.68]
[1718446651842,5.75,143.51,143.47,100.0]
[1718446652060,5.75,143.51,143.48,20.68]
[1718446652463,5.75,143.5,143.48,20.68]
[1718446652667,5.75,143.5,143.49,20.0]
[1718446652856,5.75,143.5,143.49,0.51]
[1718446654475,21.8213,143.55,143.49,0.34]
[1718446654645,5.75,143.5,143.49,0.34]
[1718446656264,21.8213,143.55,143.49,0.34]
[1718446656579,5.75,143.51,143.49,0.34]
[1718446656960,5.75,143.5,143.49,0.34]
[1718446660051,5.75,143.5,143.46,20.0]
[1718446660252,5.75,143.48,143.47,0.17]
[1718446662088,29.09521576,143.55,143.47,0.34]
[1718446662375,5.75,143.51,143.48,0.34]
[1718446662688,5.75,143.5,143.48,0.34]
[1718446669959,5.75,143.49,143.46,20.0]
[1718446670165,5.75,143.49,143.45,20.0]
[1718446670661,36.82801576,143.55,143.45,120.0]
[1718446670891,5.75,143.49,143.45,120.0]
[1718446671379,5.75,143.49,143.46,0.68]
[1718446673165,5.75,143.48,143.46,0.68]
[1718446673563,31.67271576,143.55,143.46,0.68]
[1718446673872,5.75,143.49,143.46,0.68]
[1718446674873,5.75,143.48,143.46,0.68]
[1718446676489,5.75,143.48,143.46,0.34]
[1718446676674,5.75,143.48,143.46,0.17]
[1718446676882,5.75,143.47,143.45,0.51]
[1718446677265,5.75,143.48,143.45,0.51]
[1718446678078,7.27467252,143.53,143.46,0.17]
[1718446678369,5.75,143.49,143.47,0.17]
[1718446678568,5.75,143.49,143.47,0.51]
[1718446678982,29.09523257,143.55,143.47,0.51]
[1718446679184,5.75,143.5,143.47,0.51]
[1718446679492,5.75,143.5,143.48,0.17]
[1718446679675,5.75,143.5,143.48,0.51]
[1718446681170,5.75,143.49,143.48,0.17]
[1718446681372,5.75,143.49,143.47,0.51]
[1718446681696,5.75,143.49,143.47,1.90374661]
[1718446681982,5.75,143.5,143.47,1.90374661]
[1718446682161,29.09523257,143.55,143.48,0.17]
[1718446682362,5.75,143.52,143.49,0.17]
[1718446682580,5.75,143.52,143.49,0.51]
[1718446682988,21.8213,143.55,143.49,0.51]
[1718446683198,5.75,143.53,143.49,100.51]
[1718446683374,5.75,143.53,143.51,0.17]
[1718446683696,5.75,143.53,143.51,0.51]
[1718446687193,23.28613939,143.58,143.51,100.51]
[1718446687380,5.75,143.54,143.52,0.17]
[1718446687581,16.0295,143.58,143.53,0.17]
[1718446687768,5.75,143.54,143.53,0.51]
[1718446690588,5.75,143.54,143.53,0.17]
[1718446690817,5.75,143.54,143.51,0.17]
[1718446690984,5.75,143.53,143.51,0.68]
[1718446692280,5.75,143.53,143.51,100.68]
[1718446692467,5.75,143.54,143.51,100.68]
[1718446693300,5.75,143.54,143.51,0.68]
[1718446693512,5.75,143.53,143.51,0.68]
[1718446694402,2.5773,143.56,143.51,0.17]
[1718446694625,5.75,143.52,143.51,20.0]
[1718446694782,5.75,143.52,143.5,0.17]
[1718446695096,5.75,143.52,143.5,0.51]
[1718446695409,5.75,143.53,143.5,0.51]
[1718446695616,5.75,143.53,143.51,0.17]
[1718446695979,5.75,143.53,143.5,0.51]
[1718446703016,5.75,143.53,143.51,0.17]
[1718446703215,5.75,143.53,143.51,0.51]
[1718446703739,23.0,143.57,143.52,0.17]
[1718446703907,5.75,143.55,143.52,20.51]
[1718446704108,16.0295,143.58,143.52,20.51]
[1718446704310,5.75,143.55,143.52,20.51]
[1718446705433,5.75,143.55,143.53,0.17]
[1718446705638,5.75,143.55,143.53,0.51]
[1718446706302,16.0295,143.58,143.53,0.51]
[1718446706502,5.75,143.56,143.53,0.51]
[1718446707514,2.5767,143.6,143.54,0.17]
[1718446707710,5.75,143.56,143.54,0.51]
[1718446707921,2.5767,143.6,143.54,0.51]
[1718446708234,5.75,143.56,143.54,0.51]
[1718446712135,5.75,143.57,143.54,0.51]
[1718446712449,5.75,143.57,143.54,20.51]
[1718446713536,5.75,143.56,143.54,20.51]
[1718446717442,2.5766,143.6,143.54,20.51]
[1718446717742,5.75,143.56,143.54,20.51]
[1718446719417,2.5766,143.6,143.54,20.51]
[1718446719620,5.75,143.56,143.54,20.51]
[1718446721214,2.5766,143.6,143.54,20.51]
[1718446721430,5.75,143.57,143.54,20.51]
[1718446727366,5.75,143.56,143.54,20.51]
[1718446731544,5.75,143.55,143.54,20.51]
[1718446733264,5.75,143.55,143.54,20.0]
[1718446733944,5.75,143.55,143.52,20.0]
[1718446734541,5.75,143.55,143.53,0.51]
[1718446737071,24.0724,143.61,143.53,0.51]
[1718446737258,5.75,143.55,143.53,0.51]
[1718446738969,5.75,143.54,143.53,0.51]
[1718446739165,5.75,143.54,143.5,20.0]
[1718446739471,5.75,143.54,143.48,6.0238]
[1718446739472,5.75,143.53,143.49,120.0]
[1718446740687,5.75,143.53,143.51,0.17]
[1718446740899,5.75,143.53,143.51,0.34]
[1718446741187,5.75,143.53,143.52,0.51]
[1718446743163,5.75,143.54,143.52,0.51]
[1718446749405,23.0,143.57,143.52,0.51]
[1718446750395,0.33333333,143.56,143.52,0.51]
[1718446759910,5.75,143.54,143.52,0.51]
[1718446770119,5.75,143.57,143.52,0.51]
[1718446770318,5.75,143.57,143.49,120.0]
[1718446770319,5.75,143.53,143.49,20.0]
[1718446770516,5.75,143.5,143.45,100.0]
[1718446770819,15.2063,143.56,143.44,22.3683]
[1718446770820,5.75,143.48,143.44,22.3683]
[1718446771030,5.75,143.47,143.44,22.3683]
[1718446771919,5.75,143.49,143.46,0.17]
[1718446772114,5.75,143.49,143.46,0.51]
[1718446772606,5.75,143.48,143.46,0.51]
[1718446773005,5.75,143.49,143.46,0.51]
[1718446773320,5.75,143.49,143.46,20.51]
[1718446773901,7.27532595,143.55,143.47,0.17]
[1718446774100,5.75,143.5,143.47,0.51]
[1718446775934,5.75,143.49,143.47,0.51]
[1718446778476,5.75,143.48,143.47,0.51]
[1718446778737,5.75,143.48,143.47,0.68]
[1718446780518,5.75,143.49,143.47,0.68]
[1718446788179,5.75,143.49,143.47,0.17]
[1718446788340,5.75,143.48,143.45,20.0]
[1718446789582,5.75,143.48,143.46,0.51]
[1718446798857,5.75,143.49,143.46,0.51]
[1718446803579,5.75,143.5,143.47,0.34]
[1718446803878,5.75,143.5,143.48,0.34]
[1718446804778,5.75,143.5,143.48,0.17]
[1718446804978,5.75,143.49,143.45,20.0]
[1718446805167,5.75,143.49,143.46,0.68]
[1718446805474,5.75,143.48,143.46,0.68]
[1718446807967,5.75,143.48,143.46,0.34]
[1718446808175,5.75,143.48,143.46,0.17]
[1718446809258,2.5777,143.54,143.46,0.34]
[1718446809581,5.75,143.5,143.47,0.17]
[1718446809972,5.75,143.49,143.47,0.17]
[1718446812602,5.75,143.5,143.47,0.17]
[1718446813790,5.75,143.5,143.47,0.34]
[1718446814163,5.75,143.5,143.48,0.17]
[1718446815087,5.75,143.5,143.47,0.34]
[1718446818603,5.75,143.48,143.45,20.0]
[1718446818973,5.75,143.49,143.45,20.0]
[1718446820101,5.75,143.49,143.46,0.17]
[1718446823198,2.5779,143.53,143.46,0.17]
[1718446823508,5.75,143.49,143.46,0.17]
[1718446824777,14.9809346,143.54,143.46,0.51]
[1718446824982,5.75,143.49,143.47,0.34]
[1718446827207,5.75,143.5,143.47,0.34]
[1718446827384,5.75,143.5,143.48,0.17]
[1718446829404,5.75,143.49,143.48,0.17]
[1718446829613,5.75,143.49,143.47,0.34]
[1718446833588,5.75,143.49,143.45,20.0]
[1718446834108,5.75,143.46,143.45,20.0]
[1718446834409,5.75,143.46,143.42,20.0]
[1718446834609,5.75,143.46,143.43,8.36781641]
[1718446834793,5.75,143.46,143.44,20.0]
[1718446835399,5.75,143.46,143.43,0.51]
[1718446835695,5.75,143.46,143.44,8.36779332]
[1718446835997,5.75,143.46,143.45,20.0]
[1718446836401,5.75,143.46,143.42,20.0]
[1718446836595,8.3284,143.5,143.43,8.36842275]
[1718446836806,5.75,143.45,143.44,20.0]
[1718446837480,5.75,143.45,143.42,20.0]
[1718446837686,5.75,143.45,143.43,0.17]
[1718446838094,23.0,143.5,143.43,0.17]
[1718446842411,23.0,143.5,143.43,0.34]
[1718446842995,23.0,143.5,143.43,1.7328016]
[1718446846739,23.0,143.5,143.43,0.34]
[1718446847034,25.5784,143.5,143.43,0.34]
[1718446847221,30.7352,143.5,143.43,0.34]
[1718446847721,30.7352,143.5,143.42,0.34]
[1718446848020,30.7352,143.5,143.43,0.17]
[1718446848201,5.75,143.45,143.43,0.17]
[1718446849499,5.75,143.45,143.42,0.34]
[1718446849708,5.75,143.45,143.42,0.17]
[1718446850921,15.8364,143.48,143.42,0.51]
[1718446851223,5.75,143.45,143.42,0.51]
[1718446852522,5.75,143.46,143.42,0.51]
[1718446853616,5.75,143.46,143.43,0.34]
[1718446856533,5.75,143.45,143.42,0.34]
[1718446858333,15.8364,143.48,143.43,0.17]
[1718446858524,5.75,143.44,143.41,20.0]
[1718446858717,5.75,143.42,143.39,20.0]
[1718446858932,5.75,143.42,143.4,8.36968413]
[1718446859137,5.75,143.42,143.39,20.0]
[1718446859138,5.75,143.42,143.41,20.0]
[1718446859328,5.75,143.42,143.39,20.0]
[1718446859825,5.75,143.42,143.4,0.34]
[1718446860023,5.75,143.42,143.41,0.17]
[1718446860540,5.75,143.43,143.41,0.17]
[1718446862827,5.75,143.42,143.39,20.0]
[1718446863037,5.75,143.4,143.37,20.0]
[1718446864240,5.75,143.4,143.38,0.51]
[1718446864548,5.75,143.41,143.38,0.51]
[1718446865028,5.75,143.42,143.38,0.51]
[1718446866139,15.0311,143.44,143.38,0.51]
[1718446866442,15.0311,143.44,143.39,0.34]
[1718446866443,5.75,143.43,143.39,0.34]
[1718446866640,5.75,143.42,143.4,0.17]
[1718446867314,5.75,143.42,143.4,0.34]
[1718446867521,5.75,143.42,143.38,0.34]
[1718446867731,5.75,143.42,143.37,20.0]
[1718446867919,5.75,143.4,143.37,20.0]
[1718446868120,5.75,143.4,143.35,20.0]
[1718446868519,5.75,143.39,143.35,20.0]
[1718446868922,5.75,143.43,143.35,20.0]
[1718446868923,5.75,143.38,143.35,20.0]
[1718446869130,5.75,143.38,143.34,20.0]
[1718446870745,5.75,143.37,143.34,20.0]
[1718446871133,5.75,143.37,143.32,20.0]
[1718446871941,5.75,143.37,143.33,0.34]
[1718446872138,5.75,143.37,143.34,0.51]
[1718446874451,5.75,143.37,143.34,0.17]
[1718446874646,5.75,143.37,143.33,0.51]
[1718446875029,5.75,143.36,143.33,0.51]
[1718446876665,5.75,143.37,143.32,20.0]
[1718446876953,5.75,143.33,143.27,363.25]
[1718446877125,5.75,143.33,143.27,105.75]
[1718446877724,5.75,143.33,143.27,126.66]
[1718446878751,5.75,143.33,143.29,0.17]
[1718446881057,15.0311,143.35,143.29,100.17]
[1718446881273,7.27693066,143.38,143.31,100.17]
[1718446881433,5.75,143.37,143.32,20.51]
[1718446883135,15.209,143.39,143.33,0.17]
[1718446883335,5.75,143.37,143.33,0.17]
[1718446884272,5.75,143.37,143.32,20.51]
[1718446884487,5.75,143.36,143.32,0.34]
[1718446885169,5.75,143.35,143.3,20.0]
[1718446885343,7.7421,143.37,143.3,20.0]
[1718446885543,5.75,143.34,143.3,20.0]
[1718446885750,5.75,143.33,143.29,20.0]
[1718446886053,5.75,143.33,143.28,20.0]
[1718446886443,5.75,143.33,143.29,0.17]
[1718446886638,5.75,143.33,143.29,0.51]
[1718446887246,5.75,143.34,143.29,0.51]
[1718446887643,5.75,143.33,143.29,0.51]
[1718446888144,2.5807,143.37,143.28,20.0]
[1718446888145,5.75,143.32,143.28,20.0]
[1718446888346,5.75,143.32,143.27,20.0]
[1718446889651,5.75,143.32,143.28,0.17]
[1718446891552,15.209,143.34,143.27,20.0]
[1718446891862,5.75,143.31,143.26,20.0]
[1718446892470,5.75,143.32,143.26,25.75]
[1718446892861,5.75,143.32,143.27,0.51]
[1718446893171,5.75,143.32,143.27,0.99957856]
[1718446893461,5.75,143.32,143.27,1.67945743]
[1718446894154,5.75,143.32,143.27,0.34]
[1718446894354,5.75,143.32,143.27,0.17]
[1718446894537,15.209,143.34,143.27,100.88004683]
[1718446894742,5.75,143.33,143.29,0.17]
[1718446894965,5.75,143.33,143.29,0.51]
[1718446895162,15.209,143.34,143.29,0.51]
[1718446895348,5.75,143.33,143.29,0.51]
[1718446896860,5.75,143.33,143.29,0.17]
[1718446897072,5.75,143.32,143.27,0.17]
[1718446897372,5.75,143.32,143.27,0.51]
[1718446899264,15.209,143.34,143.27,106.26]
[1718446899467,5.75,143.33,143.29,0.17]
[1718446899682,7.27861588,143.37,143.29,100.51]
[1718446899861,5.75,143.36,143.3,25.92]
[1718446900057,5.75,143.36,143.31,0.17]
[1718446900256,5.75,143.34,143.31,0.17]
[1718446900471,19.0804,143.38,143.31,0.17]
[1718446900656,5.75,143.34,143.31,20.0]
[1718446900855,5.75,143.34,143.3,0.34]
[1718446901981,5.75,143.35,143.3,0.34]
[1718446902182,16.4999,143.38,143.31,0.17]
[1718446902391,5.75,143.36,143.31,20.34]
[1718446902571,5.75,143.36,143.32,20.17]
[1718446902763,5.75,143.36,143.32,0.17]
[1718446903086,5.75,143.36,143.32,0.34]
[1718446905079,16.4999,143.38,143.33,0.17]
[1718446905388,5.75,143.37,143.33,0.51]
[1718446905592,5.75,143.37,143.34,0.17]
[1718446907763,5.75,143.37,143.33,0.17]
[1718446907959,5.75,143.36,143.32,0.17]
[1718446908173,5.75,143.36,143.31,0.51]
[1718446913195,5.75,143.36,143.32,0.17]
[1718446913798,5.75,143.37,143.32,0.17]
[1718446914773,5.75,143.36,143.32,0.17]
[1718446916680,5.75,143.35,143.31,0.17]
[1718446917873,5.75,143.33,143.3,20.0]
[1718446918215,5.75,143.33,143.31,20.0]
[1718446918376,5.75,143.33,143.29,20.0]
[1718446918997,5.75,143.33,143.28,20.0]
[1718446919709,21.2355,143.36,143.27,16.3879]
[1718446919889,31.5595,143.36,143.27,16.3879]
[1718446920090,5.75,143.31,143.27,16.3879]
[1718446920295,5.75,143.31,143.25,6.1331]
[1718446920607,5.75,143.31,143.25,11.8831]
[1718446921317,5.75,143.31,143.26,0.34]
[1718446921485,5.75,143.29,143.23,143.1381]
[1718446921806,5.75,143.29,143.24,0.17]
[1718446922006,5.75,143.29,143.23,16.4481]
[1718446922221,5.75,143.28,143.23,16.4481]
[1718446922377,5.75,143.27,143.21,111.9734]
[1718446922712,5.75,143.27,143.22,8.37951348]
[1718446923077,5.75,143.27,143.21,111.9734]
[1718446923292,5.75,143.28,143.22,14.12946625]
[1718446923487,5.75,143.28,143.23,20.0]
[1718446924714,5.75,143.28,143.24,0.17]
[1718446925018,5.75,143.27,143.23,20.0]
[1718446925181,5.75,143.27,143.23,0.17]
[1718446925381,5.75,143.27,143.23,0.51]
[1718446929598,5.75,143.27,143.23,0.17]
[1718446932227,5.75,143.27,143.22,20.0]
[1718446932410,5.75,143.27,143.21,25.92]
[1718446932597,5.75,143.26,143.21,20.17]
[1718446934023,5.75,143.25,143.21,20.17]
[1718446934228,5.75,143.25,143.21,0.17]
[1718446934429,5.75,143.25,143.21,0.34]
[1718446934834,15.4321,143.28,143.21,0.34]
[1718446938348,15.4321,143.28,143.22,6.09]
[1718446938512,15.4321,143.28,143.23,20.34]
[1718446938712,21.1821,143.28,143.23,20.34]
[1718446938937,21.1821,143.28,143.24,0.85588267]
[1718446939117,21.1821,143.28,143.23,20.34]
[1718446940635,15.4321,143.28,143.24,0.17]
[1718446940820,21.1821,143.28,143.24,0.17]
[1718446942322,6.2469,143.3,143.24,0.17]
[1718446942518,5.75,143.28,143.24,0.34]
[1718446942732,5.75,143.28,143.25,0.34]
[1718446943932,5.75,143.28,143.25,0.17]
[1718446944141,8.8289,143.3,143.24,0.51]
[1718446944343,5.75,143.27,143.24,0.51]
[1718446946340,5.75,143.27,143.24,0.17]
[1718446946543,5.75,143.27,143.23,0.51]
[1718446946917,5.75,143.28,143.23,0.51]
[1718446947118,5.75,143.27,143.23,0.51]
[1718446948926,5.75,143.27,143.23,0.17]
[1718446949822,5.75,143.27,143.23,0.34]
[1718446950017,5.75,143.28,143.24,0.17]
[1718446950433,5.75,143.28,143.24,0.34]
[1718446950625,5.75,143.28,143.25,0.17]
[1718446952345,6.2469,143.3,143.25,0.17]
[1718446952535,5.75,143.28,143.25,0.17]
[1718446953729,7.26036487,143.31,143.27,0.17]
[1718446953936,19.0168,143.35,143.27,6.09]
[1718446953937,5.75,143.33,143.27,6.09]
[1718446954135,5.75,143.33,143.29,0.17]
[1718446954752,16.4357,143.35,143.29,0.17]
[1718446954966,5.75,143.34,143.29,20.34]
[1718446955125,5.75,143.34,143.3,0.34]
[1718446955532,16.4357,143.35,143.3,0.34]
[1718446955799,5.75,143.34,143.3,0.34]
[1718446956460,13.58657078,143.37,143.31,0.34]
[1718446956629,19.0161,143.39,143.32,0.34]
[1718446956945,5.75,143.36,143.32,0.34]
[1718446957556,2.5805,143.38,143.32,0.34]
[1718446957758,5.75,143.36,143.32,0.34]
[1718446957957,24.1771,143.39,143.32,0.34]
[1718446958159,5.75,143.36,143.32,0.34]
[1718446959853,19.0161,143.39,143.32,0.34]
[1718446960052,5.75,143.36,143.32,0.34]
[1718446962349,19.016,143.39,143.32,0.34]
[1718446962641,5.75,143.36,143.32,0.34]
[1718446965453,5.75,143.34,143.31,20.0]
[1718446965772,2.5808,143.37,143.26,22.98850076]
[1718446965773,5.75,143.32,143.26,22.98850076]